bitfinex-derivatives/quotes_BTCF0:USTF0_20250119
["timestamp","ask_amount","ask_price","bid_price","bid_amount"]
[1737305710792,0.04777409,104970.0,104960.0,0.44287152]
[1737305711197,0.04777409,104970.0,104960.0,0.44585432]
[1737305711396,0.08214561,104970.0,104960.0,0.4085]
[1737305711596,0.08214561,104970.0,104960.0,0.41148281]
[1737305711899,0.04777409,104970.0,104960.0,0.44585433]
[1737305712292,0.04777409,104970.0,104960.0,0.45062673]
[1737305712492,0.04777409,104970.0,104960.0,0.44585433]
[1737305713099,0.04777409,104970.0,104960.0,0.45062675]
[1737305713903,0.04777409,104970.0,104960.0,0.46255771]
[1737305714290,0.04777409,104970.0,104960.0,0.45062668]
[1737305714693,0.04777409,104970.0,104960.0,0.46255774]
[1737305714905,0.08214561,104970.0,104960.0,0.41625516]
[1737305715095,0.04777409,104970.0,104960.0,0.41625516]
[1737305715803,0.04777409,104970.0,104960.0,0.41625541]
[1737305716103,0.19628903,104970.0,104960.0,0.58668831]
[1737305717507,0.22482488,104970.0,104960.0,0.64427723]
[1737305717901,0.19045336,104970.0,104960.0,0.64427723]
[1737305718096,0.19045336,104970.0,104960.0,0.64427725]
[1737305718999,0.36193367,104970.0,104960.0,0.92958769]
[1737305719897,0.39630519,104970.0,104960.0,0.92958762]
[1737305720211,0.25362592,104970.0,104960.0,0.81542096]
[1737305721730,0.30002019,104970.0,104960.0,0.81542096]
[1737305722922,0.25362592,104970.0,104960.0,0.76772096]
[1737305723129,0.25354783,104970.0,104960.0,0.76772096]
[1737305724024,0.64871935,104970.0,104960.0,0.40692096]
[1737305724224,0.68521935,104970.0,104960.0,0.40214843]
[1737305724421,0.68521935,104970.0,104960.0,0.00298306]
[1737305725813,0.46604304,104970.0,104950.0,0.3608]
[1737305726018,0.19114404,104960.0,104950.0,0.3685563]
[1737305726218,0.19114404,104960.0,104950.0,0.00298319]
[1737305726632,0.19114404,104960.0,104950.0,0.00775649]
[1737305727430,0.55194404,104960.0,104950.0,0.00298319]
[1737305727731,0.047707,104950.0,104930.0,0.43435002]
[1737305728027,0.047707,104950.0,104930.0,0.50175364]
[1737305728028,0.0344442,104940.0,104930.0,0.50175364]
[1737305728325,0.0344442,104940.0,104930.0,0.46895969]
[1737305728628,7.268e-05,104940.0,104930.0,0.46895969]
[1737305728824,0.29179585,104940.0,104930.0,0.46895969]
[1737305729823,0.29179585,104940.0,104930.0,0.44312186]
[1737305730029,0.21749423,104940.0,104930.0,0.44312186]
[1737305730232,0.21749423,104940.0,104930.0,0.43118735]
[1737305730233,0.29970423,104940.0,104930.0,0.43118735]
[1737305730415,0.29963155,104940.0,104930.0,0.43118735]
[1737305730817,0.29963155,104940.0,104930.0,0.07038735]
[1737305731025,0.29963155,104940.0,104930.0,0.0554693]
[1737305731720,0.29963155,104940.0,104930.0,0.05546976]
[1737305732320,0.26533812,104940.0,104930.0,0.41626976]
[1737305732521,0.26532888,104940.0,104930.0,0.05546976]
[1737305732717,0.26533812,104940.0,104930.0,0.41626976]
[1737305732919,0.26526003,104940.0,104930.0,0.41626976]
[1737305733622,0.26526003,104940.0,104930.0,0.05546976]
[1737305733823,0.26526003,104940.0,104930.0,0.41626976]
[1737305735328,0.29963155,104940.0,104930.0,0.05546976]
[1737305735829,0.29970964,104940.0,104930.0,0.05546976]
[1737305736129,0.29963155,104940.0,104930.0,0.41149575]
[1737305736431,0.29963155,104940.0,104930.0,0.05069575]
[1737305736629,0.29969856,104940.0,104930.0,0.00298375]
[1737305736823,0.29963155,104940.0,104930.0,0.00298375]
[1737305737024,0.29970964,104940.0,104930.0,0.00298375]
[1737305737226,0.29963155,104940.0,104930.0,0.00298375]
[1737305737730,0.32822618,104940.0,104920.0,0.45240191]
[1737305737930,0.03444961,104930.0,104920.0,0.47209567]
[1737305738325,0.03444961,104930.0,104920.0,0.48701523]
[1737305738725,0.03444961,104930.0,104920.0,0.47753232]
[1737305739434,0.03444961,104930.0,104920.0,0.46559676]
[1737305739634,0.03444961,104930.0,104920.0,0.46082246]
[1737305739835,0.03444961,104930.0,104920.0,0.47753254]
[1737305740038,0.03444961,104930.0,104920.0,0.46559679]
[1737305740230,0.03444961,104930.0,104920.0,0.46082249]
[1737305740436,0.03444961,104930.0,104920.0,0.41150293]
[1737305740629,0.03437152,104930.0,104920.0,0.41150293]
[1737305741639,0.08208652,104930.0,104920.0,0.3608]
[1737305741940,0.11645804,104930.0,104920.0,0.3608]
[1737305742139,0.08216461,104930.0,104920.0,0.36378405]
[1737305742431,0.08208652,104930.0,104920.0,0.3608]
[1737305742631,0.19618621,104930.0,104920.0,0.3608]
[1737305743038,0.19618621,104930.0,104910.0,0.53697262]
[1737305743336,0.03444961,104920.0,104910.0,0.50416925]
[1737305743527,0.03444961,104920.0,104910.0,0.51908988]
[1737305744735,0.03444961,104920.0,104910.0,0.54176558]
[1737305745437,0.03444961,104920.0,104910.0,0.50739406]
[1737305745638,0.03444961,104920.0,104910.0,0.54176558]
[1737305746333,7.809e-05,104920.0,104910.0,0.54176558]
[1737305746537,0.03444961,104920.0,104910.0,0.54176558]
[1737305746738,7.809e-05,104920.0,104910.0,0.54654005]
[1737305747742,7.809e-05,104920.0,104910.0,0.52684495]
[1737305748044,7.809e-05,104920.0,104910.0,0.54653751]
[1737305748342,7.809e-05,104920.0,104910.0,0.53460262]
[1737305748543,7.809e-05,104920.0,104910.0,0.54653751]
[1737305748840,7.809e-05,104920.0,104910.0,0.56458269]
[1737305750636,0.11409969,104940.0,104930.0,0.047715]
[1737305750838,0.11409969,104940.0,104930.0,0.84142375]
[1737305751036,0.31454091,104940.0,104930.0,0.91302375]
[1737305751241,0.31454091,104940.0,104930.0,0.86060705]
[1737305752236,0.25720044,104940.0,104930.0,0.86060705]
[1737305753039,0.25720044,104940.0,104930.0,0.87552447]
[1737305754343,0.14297314,104940.0,104930.0,0.87552447]
[1737305754743,0.14297314,104940.0,104930.0,0.84032447]
[1737305754947,0.14297314,104940.0,104930.0,0.89274117]
[1737305755138,0.14297314,104940.0,104930.0,0.87782375]
[1737305755336,0.14297314,104940.0,104930.0,0.88727657]
[1737305757241,0.31454091,104940.0,104930.0,0.88727657]
[1737305757944,0.31454091,104940.0,104930.0,0.87534219]
[1737305758148,0.31454091,104940.0,104930.0,0.88727572]
[1737305758655,0.25737877,104940.0,104930.0,0.88727572]
[1737305759650,0.11440563,104940.0,104930.0,0.88727572]
[1737305760153,0.11440563,104940.0,104930.0,0.88727463]
[1737305761137,0.25737877,104940.0,104930.0,0.88727463]
[1737305762154,0.25737877,104940.0,104930.0,0.89324122]
[1737305762450,0.11440563,104940.0,104930.0,0.89324122]
[1737305763451,0.11440563,104940.0,104930.0,0.89324077]
[1737305764055,0.11440563,104940.0,104930.0,0.89324042]
[1737305764244,0.11440563,104940.0,104930.0,0.88727393]
[1737305765053,0.11440563,104940.0,104930.0,0.92407393]
[1737305765459,0.11440563,104940.0,104930.0,0.90438452]
[1737305765756,0.11440563,104940.0,104930.0,0.92417844]
[1737305767450,0.11440563,104940.0,104930.0,0.9163175]
[1737305767654,0.11440563,104940.0,104930.0,0.92417817]
[1737305768255,0.11440563,104940.0,104930.0,0.93014463]
[1737305770745,0.11440563,104940.0,104930.0,0.91211176]
[1737305772454,0.11440563,104940.0,104930.0,0.94649554]
[1737305772662,0.17156777,104960.0,104940.0,0.04771]
[1737305772857,0.17156777,104960.0,104950.0,0.83918883]
[1737305773063,0.17156777,104960.0,104950.0,0.86484442]
[1737305773862,0.20021033,104970.0,104960.0,0.047701]
[1737305774163,0.20021033,104970.0,104960.0,0.50302433]
[1737305774357,0.26961033,104980.0,104960.0,0.53712433]
[1737305774560,0.26961033,104980.0,104970.0,0.44287983]
[1737305774858,0.26961033,104980.0,104970.0,0.46852943]
[1737305775256,0.26961033,104980.0,104970.0,0.46256405]
[1737305775764,0.0694,104980.0,104970.0,0.46256301]
[1737305777360,0.0694,104980.0,104970.0,0.46852757]
[1737305777759,0.0694,104980.0,104970.0,0.46852743]
[1737305779258,0.0694,104980.0,104970.0,0.47229537]
[1737305779658,0.0694,104980.0,104970.0,0.46036625]
[1737305779861,0.0694,104980.0,104970.0,0.47229545]
[1737305780068,0.0694,104980.0,104970.0,0.46752381]
[1737305780257,0.0694,104980.0,104970.0,0.47229555]
[1737305781362,0.0694,104980.0,104970.0,0.47229553]
[1737305781667,0.0694,104980.0,104970.0,0.46752386]
[1737305781865,0.0694,104980.0,104970.0,0.46752385]
[1737305782263,0.10378383,104980.0,104970.0,0.42340752]
[1737305782569,0.10378383,104980.0,104970.0,0.4114783]
[1737305783463,0.10378383,104980.0,104970.0,0.42340812]
[1737305783858,0.10378383,104980.0,104970.0,0.37571221]
[1737305783859,0.15147583,104980.0,104970.0,0.37571221]
[1737305784172,0.18585966,104980.0,104970.0,0.00298244]
[1737305784368,0.18585966,104980.0,104960.0,0.4085]
[1737305784571,0.06808383,104970.0,104960.0,0.42818487]
[1737305784767,0.0337,104970.0,104960.0,0.4625687]
[1737305784967,0.0694,104980.0,104970.0,0.047696]
[1737305785167,0.0694,104980.0,104970.0,0.44586238]
[1737305785363,0.0694,104980.0,104970.0,0.45779217]
[1737305785563,0.0694,104980.0,104970.0,0.4625639]
[1737305785763,0.0694,104980.0,104970.0,0.46256362]
[1737305786274,0.10378383,104980.0,104970.0,0.4234081]
[1737305786571,0.10378383,104980.0,104970.0,0.46852854]
[1737305786572,0.0694,104980.0,104970.0,0.46852854]
[1737305787263,0.117092,104980.0,104970.0,0.45659875]
[1737305787467,0.117092,104980.0,104970.0,0.42221492]
[1737305787664,0.15147583,104980.0,104970.0,0.42221492]
[1737305787861,0.15147583,104980.0,104970.0,0.4162505]
[1737305788366,0.117092,104980.0,104970.0,0.4162505]
[1737305788961,0.0694,104980.0,104970.0,0.25016231]
[1737305789276,0.0694,104980.0,104970.0,0.10772927]
[1737305789465,0.0694,104980.0,104970.0,0.10176429]
[1737305789666,0.0694,104980.0,104970.0,0.46256429]
[1737305789878,0.0694,104980.0,104970.0,0.08207983]
[1737305790171,0.0694,104980.0,104970.0,0.46852881]
[1737305790570,0.0694,104980.0,104970.0,0.45063418]
[1737305790773,0.0694,104980.0,104970.0,0.44287983]
[1737305791675,0.10378383,104980.0,104970.0,0.408496]
[1737305792375,0.10378383,104980.0,104970.0,0.047696]
[1737305792874,0.0694,104980.0,104970.0,0.047696]
[1737305793262,0.15147583,104980.0,104970.0,0.047696]
[1737305793469,0.15147583,104980.0,104960.0,0.44288183]
[1737305794470,0.32271818,104980.0,104960.0,0.44288183]
[1737305794867,0.32271818,104980.0,104960.0,0.39518383]
[1737305795068,0.32271818,104980.0,104970.0,0.047696]
[1737305795373,0.117092,104980.0,104970.0,0.047696]
[1737305795561,0.15147583,104980.0,104970.0,0.047696]
[1737305795766,0.15147583,104980.0,104970.0,0.408496]
[1737305795971,0.15147583,104980.0,104970.0,0.047696]
[1737305796572,0.15147583,104980.0,104970.0,0.27526713]
[1737305797071,0.15147583,104980.0,104970.0,0.63606713]
[1737305797573,0.15147583,104980.0,104970.0,0.27526713]
[1737305797873,0.15147583,104980.0,104970.0,0.63606713]
[1737305798072,0.15147583,104980.0,104970.0,0.27526713]
[1737305798577,0.117092,104980.0,104970.0,0.27526713]
[1737305799182,0.0694,104980.0,104970.0,0.27526713]
[1737305799772,0.10378383,104980.0,104970.0,0.63606713]
[1737305800479,0.0694,104980.0,104970.0,0.27526713]
[1737305800879,0.0694,104980.0,104970.0,0.63606713]
[1737305801270,0.04484096,104990.0,104970.0,0.67045096]
[1737305801466,0.07922479,104990.0,104970.0,0.67045096]
[1737305802774,0.07922479,104990.0,104970.0,0.95491488]
[1737305803473,0.07922479,104990.0,104970.0,0.9686367]
[1737305803875,0.07922479,104990.0,104970.0,1.25349893]
[1737305804072,0.03438383,104980.0,104970.0,1.21911509]
[1737305804281,0.03438383,104980.0,104970.0,0.80465308]
[1737305804483,0.18585966,104980.0,104970.0,0.80465308]
[1737305804776,0.18585966,104980.0,104970.0,1.16545308]
[1737305804972,0.15147583,104980.0,104970.0,0.59612693]
[1737305805982,0.15147583,104980.0,104970.0,0.59612724]
[1737305806379,0.15147583,104980.0,104970.0,0.59135425]
[1737305807683,0.15147583,104980.0,104970.0,0.59612753]
[1737305807883,0.15147583,104980.0,104970.0,0.58837113]
[1737305808079,0.15147583,104980.0,104970.0,0.59612717]
[1737305808472,0.15147583,104980.0,104970.0,0.59135443]
[1737305808675,0.15147583,104980.0,104970.0,0.59612741]
[1737305809078,0.10378383,104980.0,104970.0,0.59612741]
[1737305809485,0.10378383,104980.0,104970.0,0.58837113]
[1737305809688,0.10378383,104980.0,104970.0,0.59135422]
[1737305809879,0.18585966,104980.0,104970.0,0.59135422]
[1737305810075,0.15147583,104980.0,104970.0,0.58837113]
[1737305811381,0.32271818,104980.0,104970.0,0.3608]
[1737305811577,0.24064235,104980.0,104970.0,0.44287983]
[1737305811784,0.17124235,104980.0,104970.0,0.44586293]
[1737305812089,0.17124235,104980.0,104970.0,0.48236286]
[1737305812386,0.31410742,104980.0,104970.0,0.48236286]
[1737305814092,0.14286507,104980.0,104970.0,0.48236286]
[1737305816487,0.14286507,104980.0,104970.0,0.48713566]
[1737305817980,0.14286507,104980.0,104970.0,0.48713561]
[1737305818889,0.14286507,104980.0,104970.0,0.49665488]
[1737305819090,0.23607786,104990.0,104970.0,1.07268611]
[1737305819391,0.23607786,104990.0,104980.0,0.3608]
[1737305819576,0.23607786,104990.0,104980.0,0.36378299]
[1737305820177,0.23607786,104990.0,104980.0,0.5916828]
[1737305820589,0.20169403,104990.0,104980.0,0.64414798]
[1737305820990,0.23607786,104990.0,104980.0,0.64414798]
[1737305821292,0.23607786,104990.0,104980.0,0.6393748]
[1737305821989,0.23607786,104990.0,104980.0,0.64414798]
[1737305822191,0.23607786,104990.0,104980.0,0.6393748]
[1737305822784,0.23607786,104990.0,104980.0,0.64414798]
[1737305823089,0.14429456,104990.0,104980.0,0.71291564]
[1737305823286,0.14286507,104990.0,104980.0,0.79378104]
[1737305823489,0.14286507,104990.0,104980.0,0.78781519]
[1737305824398,0.40570387,105010.0,104990.0,0.047686]
[1737305824690,0.03438383,105000.0,104990.0,0.41146897]
[1737305825096,0.37132004,105010.0,105000.0,0.047683]
[1737305825287,0.23446152,105010.0,105000.0,0.05066597]
[1737305825486,0.23446152,105010.0,105000.0,0.41146597]
[1737305825988,0.18678252,105010.0,105000.0,0.408483]
[1737305826384,0.18678252,105010.0,105000.0,0.41146564]
[1737305827092,0.18678252,105010.0,105000.0,0.408483]
[1737305827093,0.2151598,105010.0,105000.0,0.408483]
[1737305827393,0.18077597,105010.0,105000.0,0.41146597]
[1737305827582,0.2151598,105010.0,105000.0,0.41146597]
[1737305827787,0.2151598,105010.0,105000.0,0.408483]
[1737305828389,0.2151598,105010.0,105000.0,0.41146597]
[1737305830196,0.35788774,105010.0,105000.0,0.41146597]
[1737305831091,0.35788774,105010.0,105000.0,0.408483]
[1737305832991,0.04391745,105010.0,105000.0,0.408483]
[1737305834092,0.09159545,105010.0,105000.0,0.408483]
[1737305834296,0.20569322,105010.0,105000.0,0.408483]
[1737305836091,0.20569322,105010.0,105000.0,0.3608]
[1737305837795,0.11409777,105010.0,105000.0,0.44286683]
[1737305837991,0.11409777,105010.0,105000.0,0.47756683]
[1737305838499,0.1484816,105010.0,105000.0,0.443183]
[1737305838700,0.11409777,105010.0,105000.0,0.47756683]
[1737305838901,0.11409777,105010.0,105000.0,0.443183]
[1737305839200,0.11409777,105010.0,105000.0,0.47756683]
[1737305839605,0.11409777,105010.0,105000.0,0.443183]
[1737305841203,0.1484816,105010.0,105000.0,0.443183]
[1737305841593,0.25200038,105010.0,105000.0,0.443183]
[1737305842197,0.25200038,105010.0,105000.0,0.408483]
[1737305842402,0.29967838,105010.0,105000.0,0.408483]
[1737305843109,0.25330418,105010.0,105000.0,0.3608]
[1737305844592,0.08206183,105010.0,105000.0,0.3608]
[1737305846199,0.12843737,105010.0,105000.0,0.408483]
[1737305846703,0.09405354,105010.0,105000.0,0.408483]
[1737305847000,0.04637554,105010.0,105000.0,0.408483]
[1737305847191,0.04637554,105010.0,105000.0,0.44286683]
[1737305847590,0.11421305,105010.0,105000.0,0.61348317]
[1737305847995,0.11421305,105010.0,105000.0,0.647867]
[1737305848202,0.11421305,105010.0,105000.0,0.68858317]
[1737305848902,0.11421305,105010.0,105000.0,0.74564286]
[1737305851712,0.11421305,105010.0,105000.0,0.91634227]
[1737305853300,0.11421305,105010.0,105000.0,0.92610276]
[1737305853501,0.11421305,105010.0,105000.0,1.03999839]
[1737305854703,0.25697937,105010.0,105000.0,1.29027753]
[1737305855001,0.3390412,105010.0,105000.0,1.16250615]
[1737305855199,0.3390412,105010.0,105000.0,1.15773374]
[1737305855411,0.3390412,105010.0,105000.0,1.15475113]
[1737305856115,0.22482815,105010.0,105000.0,0.75937549]
[1737305856306,0.22482815,105010.0,105000.0,0.76235846]
[1737305856610,0.22482815,105010.0,105000.0,0.75937549]
[1737305857312,0.39614773,105010.0,105000.0,0.76235812]
[1737305857915,0.39614773,105010.0,105000.0,0.76235846]
[1737305858507,0.39614773,105010.0,105000.0,0.75937549]
[1737305858801,0.22482815,105010.0,105000.0,0.75937549]
[1737305859005,0.22482815,105010.0,105000.0,0.76235812]
[1737305859700,0.22482815,105010.0,105000.0,0.75937549]
[1737305862817,0.28190139,105010.0,105000.0,0.36378163]
[1737305866516,0.28190139,105010.0,105000.0,0.36378161]
[1737305868121,0.28190139,105010.0,105000.0,0.41146461]
[1737305868306,0.24751756,105010.0,105000.0,0.44584844]
[1737305868508,0.19983956,105010.0,105000.0,0.44584843]
[1737305869517,0.21798146,105010.0,105000.0,0.61674789]
[1737305869808,0.21798146,105010.0,105000.0,0.62151837]
[1737305870009,0.21798146,105010.0,105000.0,0.69351837]
[1737305870607,0.21798146,105010.0,105000.0,0.70544435]
[1737305870815,0.21798146,105010.0,105000.0,0.53454489]
[1737305870816,0.14300713,105010.0,105000.0,0.53454489]
[1737305871003,0.14300713,105010.0,105000.0,0.51486683]
[1737305871209,0.14300713,105010.0,105000.0,0.53454481]
[1737305871717,0.14300713,105010.0,105000.0,0.56892864]
[1737305871911,0.00142883,105020.0,105010.0,0.047678]
[1737305872223,0.45709269,105030.0,105020.0,0.047674]
[1737305872412,0.45709269,105030.0,105020.0,0.53173372]
[1737305872612,0.45709269,105030.0,105020.0,0.53173191]
[1737305873616,0.43417203,105030.0,105020.0,1.2843898]
[1737305873816,0.14868694,105030.0,105020.0,1.2843898]
[1737305874622,0.11430311,105030.0,105020.0,1.3187737]
[1737305874922,0.11430311,105030.0,105020.0,0.72493018]
[1737305875322,0.14868694,105030.0,105020.0,0.72493018]
[1737305876522,0.14868694,105030.0,105020.0,0.72493049]
[1737305876723,0.14868694,105030.0,105020.0,0.720161]
[1737305877619,0.03438383,105030.0,105020.0,0.89064165]
[1737305879019,0.03438383,105030.0,105020.0,0.49257883]
[1737305879020,0.20599143,105030.0,105020.0,0.49257883]
[1737305879417,0.20599143,105030.0,105020.0,0.477674]
[1737305879617,0.20599143,105030.0,105020.0,0.48065498]
[1737305879821,0.20599143,105030.0,105020.0,0.44505498]
[1737305880026,0.1716076,105030.0,105020.0,0.47943881]
[1737305880219,0.1716076,105030.0,105020.0,0.51463881]
[1737305880618,0.1716076,105030.0,105020.0,0.52656254]
[1737305880922,0.1716076,105030.0,105020.0,0.51165783]
[1737305881920,0.20599143,105030.0,105020.0,0.51463869]
[1737305882223,0.1716076,105030.0,105020.0,0.51463869]
[1737305883726,0.1716076,105030.0,105020.0,0.51940802]
[1737305884028,0.28609872,105040.0,105020.0,0.53133132]
[1737305884228,0.28609872,105040.0,105030.0,0.3608]
[1737305884414,0.28609872,105040.0,105030.0,0.36378083]
[1737305885626,0.28609872,105040.0,105030.0,0.41144983]
[1737305885922,0.25171489,105040.0,105030.0,0.45060281]
[1737305886230,0.28609872,105040.0,105030.0,0.41621898]
[1737305886419,0.28609872,105040.0,105030.0,0.41621895]
[1737305886920,0.22853684,105040.0,105030.0,0.41621895]
[1737305887326,0.21912955,105040.0,105030.0,0.41621895]
[1737305887827,0.21912955,105040.0,105030.0,0.05541893]
[1737305888030,0.21912955,105040.0,105030.0,0.41621914]
[1737305888224,0.21912955,105040.0,105030.0,0.41621906]
[1737305888429,0.10508383,105040.0,105030.0,0.41621906]
[1737305888723,0.20814039,105050.0,105040.0,0.047665]
[1737305888927,0.31462422,105050.0,105040.0,0.05064579]
[1737305891730,0.31462422,105050.0,105040.0,0.05541491]
[1737305891928,0.31462422,105050.0,105040.0,0.05064579]
[1737305893940,0.31462422,105050.0,105040.0,0.05064569]
[1737305894237,0.2005785,105050.0,105040.0,0.05064569]
[1737305894534,0.2005785,105050.0,105040.0,0.0506458]
[1737305894828,0.59576233,105050.0,105040.0,0.0506458]
[1737305895036,0.59576233,105050.0,105040.0,0.0029808]
[1737305895427,0.76736993,105050.0,105040.0,0.0029808]
[1737305896127,0.76736993,105050.0,105040.0,0.0029809]
[1737305897135,0.76736993,105050.0,105020.0,0.57895365]
[1737305897429,0.76736993,105050.0,105020.0,0.58968534]
[1737305897430,0.08205283,105030.0,105020.0,0.58968534]
[1737305897631,0.08205283,105030.0,105020.0,0.22888554]
[1737305897826,0.15395283,105030.0,105020.0,0.22888554]
[1737305898034,0.54913666,105030.0,105020.0,0.17525038]
[1737305898233,0.58633666,105030.0,105020.0,0.17525038]
[1737305898440,0.55195283,105030.0,105020.0,0.17525038]
[1737305898933,0.55195283,105030.0,105020.0,0.17048065]
[1737305899134,0.58633666,105030.0,105020.0,0.17048065]
[1737305899433,0.58633666,105030.0,105010.0,0.22932478]
[1737305899434,0.047674,105020.0,105010.0,0.22932478]
[1737305899629,0.11644166,105020.0,105010.0,0.17667915]
[1737305900028,0.11644166,105020.0,105010.0,0.17190896]
[1737305900228,0.11644166,105020.0,105010.0,0.17667922]
[1737305900631,0.11644166,105020.0,105010.0,0.17190896]
[1737305901738,0.11644166,105020.0,105010.0,0.00142831]
[1737305905038,0.28772048,105020.0,105010.0,0.00142831]
[1737305906731,0.11644166,105020.0,105010.0,0.00142831]
[1737305906934,0.11644166,105020.0,105010.0,0.00619882]
[1737305907739,0.11644166,105020.0,105010.0,0.0061988]
[1737305908441,0.230574,105020.0,105010.0,0.0061988]
[1737305909233,0.230574,105020.0,105010.0,0.00440989]
[1737305910341,0.230574,105020.0,105010.0,0.00440991]
[1737305914039,0.62575783,105020.0,105010.0,0.0029816]
[1737305914244,0.591374,105020.0,105010.0,0.0029816]
[1737305915447,0.61990708,105020.0,105010.0,0.0029816]
[1737305916849,0.64844017,105020.0,105010.0,0.0029816]
[1737305917839,0.64844017,105020.0,105010.0,0.00298193]
[1737305918448,0.047678,105010.0,105000.0,0.047683]
[1737305918748,0.18906183,105010.0,105000.0,0.05066489]
[1737305919743,0.18906183,105010.0,105000.0,0.047683]
[1737305919948,0.36026034,105010.0,105000.0,0.0506649]
[1737305920347,0.36026034,105010.0,105000.0,0.05543594]
[1737305921340,0.72106034,105010.0,105000.0,0.05543594]
[1737305922152,0.72106034,105010.0,105000.0,0.0506649]
[1737305922642,0.72106034,105010.0,105000.0,0.0029819]
[1737305922843,0.68436034,105010.0,105000.0,0.0506649]
[1737305923050,0.64916034,105010.0,105000.0,0.0506649]
[1737305923548,0.28836034,105010.0,105000.0,0.0506649]
[1737305923743,0.23127376,105010.0,105000.0,0.0506649]
[1737305924049,0.24084654,105010.0,105000.0,0.0506649]
[1737305925150,0.24084654,105010.0,105000.0,0.22114555]
[1737305925348,0.24084654,105010.0,105000.0,0.2259165]
[1737305925555,0.24084654,105010.0,105000.0,0.21816365]
[1737305925743,0.24084654,105010.0,105000.0,0.22591644]
[1737305926148,0.38348646,105010.0,105000.0,0.22591644]
[1737305926347,0.74428646,105010.0,105000.0,0.17346252]
[1737305926547,0.81828646,105010.0,105000.0,0.17346252]
[1737305927245,0.70417453,105010.0,105000.0,0.00298187]
[1737305927755,0.73855836,105010.0,105000.0,0.00298204]
[1737305927954,0.70417453,105010.0,105000.0,0.00298204]
[1737305928549,0.87537304,105010.0,105000.0,0.00298204]
[1737305929052,0.87537304,105010.0,105000.0,0.00775331]
[1737305931449,0.87537304,105010.0,105000.0,0.05543631]
[1737305931656,0.20073461,105010.0,105000.0,0.05543631]
[1737305931859,0.56153461,105010.0,105000.0,0.05543631]
[1737305934154,0.56153461,105010.0,105000.0,0.05066504]
[1737305934453,0.56153461,105010.0,105000.0,0.05543621]
[1737305935659,0.76137417,105010.0,105000.0,0.05543621]
[1737305936855,0.40057417,105010.0,105000.0,0.05543621]
[1737305937054,0.36347417,105010.0,105000.0,0.05543621]
[1737305938363,0.36347417,105010.0,105000.0,0.22591686]
[1737305938364,0.3065644,105010.0,105000.0,0.22591686]
[1737305939861,0.47808015,105010.0,105000.0,0.22591686]
[1737305941261,0.24750956,105030.0,105020.0,0.047674]
[1737305941455,0.19983956,105030.0,105020.0,0.08503983]
[1737305941661,0.23422339,105030.0,105020.0,0.085556]
[1737305941858,0.23422339,105030.0,105020.0,0.09032546]
[1737305942062,0.23422339,105030.0,105020.0,0.45112546]
[1737305942265,0.0807558,105030.0,105020.0,0.26080596]
[1737305942766,0.0807558,105030.0,105020.0,0.25603598]
[1737305943162,0.1284248,105030.0,105020.0,0.25603591]
[1737305943466,0.20592062,105030.0,105020.0,0.48361794]
[1737305944363,0.20592062,105030.0,105020.0,0.48838799]
[1737305945062,0.20592062,105030.0,105020.0,0.48838812]
[1737305946062,0.20592062,105030.0,105020.0,0.26080609]
[1737305947365,0.60110445,105030.0,105020.0,0.17346197]
[1737305947559,0.64042062,105030.0,105020.0,0.17346197]
[1737305948868,0.64042062,105030.0,105020.0,0.00298132]
[1737305949767,0.52611482,105030.0,105020.0,0.00298132]
[1737305950662,0.52611482,105030.0,105010.0,0.29155765]
[1737305950663,0.16531482,105030.0,105010.0,0.29155765]
[1737305950865,0.03438383,105020.0,105010.0,0.29930953]
[1737305952155,0.03438383,105020.0,105010.0,0.65533914]
[1737305952361,0.14851087,105020.0,105010.0,0.65533914]
[1737305952858,0.14851087,105020.0,105010.0,0.29453914]
[1737305953466,0.03438383,105020.0,105010.0,0.12405849]
[1737305955164,0.03438383,105020.0,105010.0,0.12405841]
[1737305956258,0.56141482,105030.0,105010.0,0.48485841]
[1737305956463,0.56141482,105030.0,105010.0,0.51924224]
[1737305957661,0.56141482,105030.0,105010.0,0.51924219]
[1737305958160,0.56141482,105030.0,105010.0,0.56691719]
[1737305958556,0.56141482,105030.0,105010.0,0.48647112]
[1737305958760,0.56141482,105030.0,105020.0,0.047674]
[1737305958968,0.20061482,105030.0,105020.0,0.047674]
[1737305959171,0.20061482,105030.0,105020.0,0.05065533]
[1737305959570,0.56141482,105030.0,105020.0,0.05542542]
[1737305959769,0.56141482,105030.0,105020.0,0.05542548]
[1737305959971,0.20061482,105030.0,105020.0,0.05542548]
[1737305960167,0.31798439,105050.0,105040.0,0.047665]
[1737305960371,0.35608439,105050.0,105040.0,0.047665]
[1737305960667,0.71688439,105050.0,105040.0,0.047665]
[1737305961259,0.51704483,105050.0,105040.0,0.047665]
[1737305961469,0.52683451,105050.0,105040.0,0.047665]
[1737305961966,0.56121834,105050.0,105040.0,0.047665]
[1737305963266,0.56121834,105050.0,105020.0,0.79466268]
[1737305963476,0.03438383,105030.0,105020.0,0.85008752]
[1737305963975,0.06908383,105030.0,105020.0,0.85008752]
[1737305964375,0.06908383,105030.0,105020.0,0.48928752]
[1737305965066,0.06908383,105030.0,105020.0,0.48928763]
[1737305965375,0.06908383,105030.0,105020.0,0.85008763]
[1737305965669,0.0347,105030.0,105020.0,0.87672051]
[1737305965875,0.0347,105030.0,105020.0,0.88447138]
[1737305967078,0.0347,105030.0,105020.0,0.7139907]
[1737305968173,0.0347,105030.0,105020.0,0.74499305]
[1737305968363,0.14882823,105030.0,105020.0,0.74499305]
[1737305968875,0.14882823,105030.0,105020.0,0.7139907]
[1737305969076,0.14882823,105030.0,105020.0,0.7139906]
[1737305969378,0.14882823,105030.0,105020.0,0.67960677]
[1737305969562,0.18321206,105030.0,105020.0,0.67960677]
[1737305970876,0.14882823,105030.0,105020.0,0.67960677]
[1737305971766,0.14882823,105030.0,105020.0,0.31880677]
[1737305971964,0.18321206,105030.0,105020.0,0.96420181]
[1737305972976,0.18321206,105030.0,105020.0,0.96420184]
[1737305973372,0.18321206,105030.0,105020.0,0.89667054]
[1737305973564,0.18321206,105030.0,105020.0,0.89667069]
[1737305974378,0.18321206,105030.0,105020.0,0.89190089]
[1737305974580,0.18321206,105030.0,105020.0,0.31403715]
[1737305975572,0.24025049,105030.0,105020.0,0.25723701]
[1737305975975,0.24025049,105030.0,105020.0,0.22143701]
[1737305976676,0.38311745,105030.0,105020.0,0.22143701]
[1737305979483,0.24025049,105030.0,105020.0,0.05065512]
[1737305980280,0.24025049,105030.0,105020.0,0.41145512]
[1737305980481,0.24025049,105030.0,105020.0,0.05065512]
[1737305980683,0.28661777,105030.0,105020.0,0.05065512]
[1737305981276,0.28661777,105030.0,105020.0,0.05542504]
[1737305981678,0.28661777,105030.0,105020.0,0.05542512]
[1737305981880,0.24025049,105030.0,105020.0,0.05542512]
[1737305982982,0.24025049,105030.0,105020.0,0.22620701]
[1737305984288,0.18340405,105030.0,105020.0,0.86133265]
[1737305984790,0.23107305,105030.0,105020.0,0.80888873]
[1737305985280,0.66355688,105030.0,105020.0,0.80888873]
[1737305985581,0.66355688,105030.0,105020.0,0.51515827]
[1737305985788,0.62917305,105030.0,105020.0,0.51515827]